[Event "Late-Titled-Tuesday-Blitz-September-26-2023"]
[Site "Chess.com"]
[Date "2023.09.26"]
[Round "8"]
[White "Djager97"]
[Black "GaiozNigalidze"]
[Result "0-1"]
[WhiteElo "2584"]
[BlackElo "2732"]
[TimeControl "180+1"]
[EndTime "15:25:15 PDT"]
[Termination "GaiozNigalidze won by resignation"]

1. e4 {[%clk 0:03:00.9]} 1... c5 {[%clk 0:02:58.6]} 2. Nf3 {[%clk 0:03:01.6]}
2... d6 {[%clk 0:02:52.5]} 3. d4 {[%clk 0:03:01.2]} 3... cxd4 {[%clk 0:02:53.4]}
4. Nxd4 {[%clk 0:03:01.3]} 4... Nf6 {[%clk 0:02:54]} 5. Nc3 {[%clk 0:03:02]}
5... a6 {[%clk 0:02:54.7]} 6. Bg5 {[%clk 0:03:01.8]} 6... e6 {[%clk 0:02:54.9]}
7. Qe2 {[%clk 0:03:01.6]} 7... h6 {[%clk 0:02:52.4]} 8. Bh4 {[%clk 0:02:57.5]}
8... Nbd7 {[%clk 0:02:52.1]} 9. O-O-O {[%clk 0:02:53.5]} 9... Qc7 {[%clk
0:02:31.2]} 10. f4 {[%clk 0:02:52.2]} 10... Be7 {[%clk 0:02:25.3]} 11. g4 {[%clk
0:02:48]} 11... g5 {[%clk 0:02:11.5]} 12. fxg5 {[%clk 0:02:40.4]} 12... Nh7
{[%clk 0:02:11.1]} 13. Kb1 {[%clk 0:02:27.7]} 13... hxg5 {[%clk 0:02:03.2]} 14.
Bg3 {[%clk 0:02:27.3]} 14... Ne5 {[%clk 0:01:59.3]} 15. Bg2 {[%clk 0:02:11.2]}
15... Nf6 {[%clk 0:01:58.9]} 16. h4 {[%clk 0:01:59.4]} 16... gxh4 {[%clk
0:01:16.8]} 17. Bxh4 {[%clk 0:02:00.3]} 17... Bd7 {[%clk 0:01:11.3]} 18. g5
{[%clk 0:01:52.5]} 18... Ng8 {[%clk 0:01:05.3]} 19. Bg3 {[%clk 0:01:10.7]} 19...
Rxh1 {[%clk 0:01:02.8]} 20. Bxh1 {[%clk 0:01:03.7]} 20... O-O-O {[%clk
0:01:02.7]} 21. Bf4 {[%clk 0:01:02.9]} 21... Bf8 {[%clk 0:00:57]} 22. Nf3 {[%clk
0:00:59.6]} 22... Nc4 {[%clk 0:00:36.8]} 23. Rd4 {[%clk 0:00:41.5]} 23... Nb6
{[%clk 0:00:32.1]} 24. Be3 {[%clk 0:00:31.8]} 24... Bc6 {[%clk 0:00:21.8]} 25.
Rb4 {[%clk 0:00:27.3]} 25... Nd7 {[%clk 0:00:21.8]} 26. Nd4 {[%clk 0:00:27.8]}
26... d5 {[%clk 0:00:21.4]} 27. Nxc6 {[%clk 0:00:26.7]} 27... Bxb4 {[%clk
0:00:19.5]} 28. Nxb4 {[%clk 0:00:20.5]} 28... Qd6 {[%clk 0:00:18]} 29. Nbxd5
{[%clk 0:00:10.1]} 29... exd5 {[%clk 0:00:17.4]} 30. exd5 {[%clk 0:00:10.3]}
30... Re8 {[%clk 0:00:14.8]} 31. Qd2 {[%clk 0:00:10.8]} 31... Qe5 {[%clk
0:00:14.1]} 32. Bf2 {[%clk 0:00:09.1]} 32... Ne7 {[%clk 0:00:12.9]} 33. a3
{[%clk 0:00:08.8]} 33... Nf5 {[%clk 0:00:12.5]} 34. Ka2 {[%clk 0:00:05.3]} 34...
Nd6 {[%clk 0:00:12.6]} 35. Qd3 {[%clk 0:00:03.9]} 35... Qf5 {[%clk 0:00:11.7]}
36. Qd4 {[%clk 0:00:03.9]} 36... Kc7 {[%clk 0:00:09.8]} 37. Qc4+ {[%clk
0:00:01.6]} 37... Nxc4 {[%clk 0:00:08.6]} 0-1

[Event "Late-Titled-Tuesday-Blitz-September-26-2023"]
[Site "Chess.com"]
[Date "2023.09.26"]
[Round "8"]
[White "TatjanaVasilevich"]
[Black "Korchmar_Vasiliy"]
[Result "0-1"]
[WhiteElo "2573"]
[BlackElo "2691"]
[TimeControl "180+1"]
[EndTime "15:25:15 PDT"]
[Termination "Korchmar_Vasiliy won by checkmate"]

1. Nf3 {[%clk 0:03:00.3]} 1... d5 {[%clk 0:02:59.9]} 2. b3 {[%clk 0:02:57.4]}
2... Nf6 {[%clk 0:02:59.5]} 3. Bb2 {[%clk 0:02:57.9]} 3... e6 {[%clk 0:03:00.1]}
4. g3 {[%clk 0:02:58.4]} 4... c5 {[%clk 0:02:55.7]} 5. Bg2 {[%clk 0:02:58.1]}
5... Nc6 {[%clk 0:02:56.3]} 6. d4 {[%clk 0:02:58.5]} 6... cxd4 {[%clk
0:02:48.8]} 7. Nxd4 {[%clk 0:02:59.4]} 7... Bb4+ {[%clk 0:02:49.1]} 8. c3 {[%clk
0:02:58.5]} 8... Bc5 {[%clk 0:02:34.2]} 9. O-O {[%clk 0:02:54.5]} 9... O-O
{[%clk 0:02:34.3]} 10. c4 {[%clk 0:02:40.4]} 10... Bxd4 {[%clk 0:02:32.3]} 11.
Bxd4 {[%clk 0:02:39.1]} 11... dxc4 {[%clk 0:02:33]} 12. Bxc6 {[%clk 0:02:38.9]}
12... bxc6 {[%clk 0:02:32.2]} 13. bxc4 {[%clk 0:02:39.3]} 13... Ba6 {[%clk
0:02:25.4]} 14. Na3 {[%clk 0:02:31.8]} 14... Qa5 {[%clk 0:02:20.3]} 15. Qb3
{[%clk 0:02:22.6]} 15... Rab8 {[%clk 0:02:14.8]} 16. Qf3 {[%clk 0:02:17.2]}
16... e5 {[%clk 0:02:03.6]} 17. Bxa7 {[%clk 0:02:08.3]} 17... Rb7 {[%clk
0:01:57.4]} 18. Qe3 {[%clk 0:02:07.7]} 18... Ra8 {[%clk 0:01:37.6]} 19. Bd4
{[%clk 0:01:56.8]} 19... exd4 {[%clk 0:01:34.8]} 20. Qf3 {[%clk 0:01:55.7]}
20... c5 {[%clk 0:01:16.2]} 21. Nb5 {[%clk 0:01:54.1]} 21... Rab8 {[%clk
0:01:10]} 22. Nd6 {[%clk 0:01:52.3]} 22... Rd7 {[%clk 0:01:03.5]} 23. Nf5 {[%clk
0:01:52.5]} 23... Bxc4 {[%clk 0:01:01.3]} 24. Qf4 {[%clk 0:01:52.8]} 24... Qc7
{[%clk 0:00:54.6]} 25. Qg5 {[%clk 0:01:51.2]} 25... Ne8 {[%clk 0:00:52.9]} 26.
Rac1 {[%clk 0:01:49.5]} 26... Bxe2 {[%clk 0:00:49]} 27. Rfe1 {[%clk 0:01:48.6]}
27... d3 {[%clk 0:00:49]} 28. Rxc5 {[%clk 0:01:48.8]} 28... Qd8 {[%clk
0:00:42.6]} 29. Qd2 {[%clk 0:01:42.1]} 29... g6 {[%clk 0:00:34.8]} 30. Ne3
{[%clk 0:01:33.8]} 30... Nf6 {[%clk 0:00:33.5]} 31. Re5 {[%clk 0:01:29.6]} 31...
Kg7 {[%clk 0:00:26.4]} 32. Ng2 {[%clk 0:01:28]} 32... Qc7 {[%clk 0:00:23.3]} 33.
Re3 {[%clk 0:01:22.4]} 33... Nd5 {[%clk 0:00:18.5]} 34. Re4 {[%clk 0:01:15.4]}
34... Qc3 {[%clk 0:00:17.2]} 35. R4xe2 {[%clk 0:01:10.6]} 35... dxe2 {[%clk
0:00:15.2]} 36. Qxe2 {[%clk 0:01:11.1]} 36... Re7 {[%clk 0:00:13.7]} 37. Qd1
{[%clk 0:01:11.1]} 37... Rxe1+ {[%clk 0:00:12.5]} 38. Nxe1 {[%clk 0:01:12]}
38... Nf6 {[%clk 0:00:08.2]} 39. Kg2 {[%clk 0:01:09.4]} 39... Qc6+ {[%clk
0:00:07.7]} 40. Kg1 {[%clk 0:01:08.3]} 40... Qd5 {[%clk 0:00:07.7]} 41. Qe2
{[%clk 0:01:08.2]} 41... Re8 {[%clk 0:00:07]} 42. Qf1 {[%clk 0:01:05.6]} 42...
Qd1 {[%clk 0:00:06.5]} 43. Ng2 {[%clk 0:01:04.8]} 43... Qxf1+ {[%clk 0:00:06.2]}
44. Kxf1 {[%clk 0:01:05.7]} 44... Ra8 {[%clk 0:00:06.5]} 45. h3 {[%clk
0:01:05.9]} 45... Rxa2 {[%clk 0:00:07]} 46. f3 {[%clk 0:01:06.5]} 46... Nd5
{[%clk 0:00:06.6]} 47. h4 {[%clk 0:01:05.5]} 47... h6 {[%clk 0:00:06.7]} 48. Kg1
{[%clk 0:01:05.7]} 48... g5 {[%clk 0:00:07]} 49. Kf1 {[%clk 0:01:05]} 49... f6
{[%clk 0:00:06.9]} 50. Kg1 {[%clk 0:01:05.4]} 50... Kf7 {[%clk 0:00:07.3]} 51.
Kf1 {[%clk 0:01:05.9]} 51... Ke6 {[%clk 0:00:07.5]} 52. Kg1 {[%clk 0:01:06.1]}
52... Ke5 {[%clk 0:00:08]} 53. Kf1 {[%clk 0:01:06.6]} 53... Kd4 {[%clk
0:00:08.3]} 54. Ne1 {[%clk 0:01:06.2]} 54... Ke3 {[%clk 0:00:05]} 55. hxg5
{[%clk 0:01:03.2]} 55... hxg5 {[%clk 0:00:04.4]} 56. Kg1 {[%clk 0:01:00.2]}
56... Ra1 {[%clk 0:00:04.1]} 57. Kf1 {[%clk 0:01:00.7]} 57... f5 {[%clk
0:00:03.2]} 58. g4 {[%clk 0:00:59.7]} 58... f4 {[%clk 0:00:03.3]} 59. Kg2 {[%clk
0:00:59.6]} 59... Rxe1 {[%clk 0:00:03.5]} 60. Kh2 {[%clk 0:01:00.5]} 60... Kxf3
{[%clk 0:00:03.3]} 61. Kh3 {[%clk 0:01:01.4]} 61... Rh1# {[%clk 0:00:03.6]} 0-1

[Event "Late-Titled-Tuesday-Blitz-September-26-2023"]
[Site "Chess.com"]
[Date "2023.09.26"]
[Round "8"]
[White "traack"]
[Black "Dacean99"]
[Result "0-1"]
[WhiteElo "2398"]
[BlackElo "2549"]
[TimeControl "180+1"]
[EndTime "15:25:16 PDT"]
[Termination "Dacean99 won by checkmate"]

1. e4 {[%clk 0:03:00.9]} 1... e6 {[%clk 0:02:59.3]} 2. d4 {[%clk 0:02:54.9]}
2... d5 {[%clk 0:02:58.5]} 3. Nd2 {[%clk 0:02:52.3]} 3... c5 {[%clk 0:02:55.6]}
4. Ngf3 {[%clk 0:02:48.9]} 4... cxd4 {[%clk 0:02:52.2]} 5. exd5 {[%clk
0:02:46.1]} 5... Qxd5 {[%clk 0:02:51.3]} 6. Bc4 {[%clk 0:02:46]} 6... Qd7 {[%clk
0:02:50.1]} 7. O-O {[%clk 0:02:45.7]} 7... a6 {[%clk 0:02:49.7]} 8. Nb3 {[%clk
0:02:44]} 8... b5 {[%clk 0:02:48.8]} 9. Be2 {[%clk 0:02:39.7]} 9... Bb7 {[%clk
0:02:48.9]} 10. Qxd4 {[%clk 0:02:38.9]} 10... Nf6 {[%clk 0:02:48.4]} 11. Bf4
{[%clk 0:02:28.9]} 11... Qxd4 {[%clk 0:02:47]} 12. Nfxd4 {[%clk 0:02:23]} 12...
Nc6 {[%clk 0:02:46.9]} 13. Bf3 {[%clk 0:02:16.6]} 13... Rc8 {[%clk 0:02:38.7]}
14. Nxc6 {[%clk 0:02:16.4]} 14... Bxc6 {[%clk 0:02:39.6]} 15. Bxc6+ {[%clk
0:02:16.5]} 15... Rxc6 {[%clk 0:02:39.3]} 16. c3 {[%clk 0:02:17.1]} 16... Nd5
{[%clk 0:02:38.9]} 17. Bg3 {[%clk 0:02:15]} 17... Be7 {[%clk 0:02:25.4]} 18.
Rfe1 {[%clk 0:01:55.4]} 18... O-O {[%clk 0:02:22.5]} 19. Rad1 {[%clk 0:01:54.4]}
19... Bf6 {[%clk 0:02:19.1]} 20. Be5 {[%clk 0:01:52.5]} 20... Rfc8 {[%clk
0:02:13.2]} 21. Bxf6 {[%clk 0:01:52.2]} 21... gxf6 {[%clk 0:02:13.3]} 22. Nd4
{[%clk 0:01:47.6]} 22... Rc4 {[%clk 0:02:12.1]} 23. Nf5 {[%clk 0:01:45.5]} 23...
R4c7 {[%clk 0:01:53.9]} 24. Ne3 {[%clk 0:01:38]} 24... Nb6 {[%clk 0:01:49]} 25.
Rd4 {[%clk 0:01:35.9]} 25... Na4 {[%clk 0:01:48.6]} 26. Re2 {[%clk 0:01:31.5]}
26... Kf8 {[%clk 0:01:42.6]} 27. h4 {[%clk 0:01:29.9]} 27... Rc5 {[%clk
0:01:40.6]} 28. g3 {[%clk 0:01:28.1]} 28... Nb6 {[%clk 0:01:36.2]} 29. Red2
{[%clk 0:01:26.6]} 29... R8c7 {[%clk 0:01:34.7]} 30. Kg2 {[%clk 0:01:25.7]}
30... Ke7 {[%clk 0:01:34.3]} 31. Rg4 {[%clk 0:01:23.6]} 31... h5 {[%clk
0:01:32.5]} 32. Rg8 {[%clk 0:01:23.2]} 32... Rc8 {[%clk 0:01:31.4]} 33. Rxc8
{[%clk 0:01:21.4]} 33... Rxc8 {[%clk 0:01:32.3]} 34. Rd4 {[%clk 0:01:19.4]}
34... Na4 {[%clk 0:01:31.7]} 35. Rd2 {[%clk 0:01:19]} 35... Nc5 {[%clk
0:01:29.5]} 36. Kf3 {[%clk 0:01:17.7]} 36... f5 {[%clk 0:01:27.6]} 37. Ng2
{[%clk 0:01:18]} 37... Ne4 {[%clk 0:01:25.3]} 38. Re2 {[%clk 0:01:18.3]} 38...
Rd8 {[%clk 0:01:22.5]} 39. Nf4 {[%clk 0:01:16.9]} 39... Nf6 {[%clk 0:01:13.9]}
40. Kg2 {[%clk 0:01:13.4]} 40... Rd1 {[%clk 0:01:11.5]} 41. Rc2 {[%clk
0:01:10.6]} 41... Kd6 {[%clk 0:01:11.2]} 42. c4 {[%clk 0:01:09.3]} 42... bxc4
{[%clk 0:01:11.3]} 43. Rxc4 {[%clk 0:01:06]} 43... Rd2 {[%clk 0:01:11.6]} 44.
Ra4 {[%clk 0:00:57.7]} 44... Rxb2 {[%clk 0:01:11.4]} 45. Rxa6+ {[%clk
0:00:57.8]} 45... Kc7 {[%clk 0:01:11.5]} 46. Ra7+ {[%clk 0:00:55.3]} 46... Kd6
{[%clk 0:01:09]} 47. Ra6+ {[%clk 0:00:54.2]} 47... Ke7 {[%clk 0:01:07.3]} 48.
Ra7+ {[%clk 0:00:54.3]} 48... Kf8 {[%clk 0:01:06.3]} 49. a4 {[%clk 0:00:49.4]}
49... Ne4 {[%clk 0:01:05.5]} 50. Nxh5 {[%clk 0:00:49.2]} 50... Rxf2+ {[%clk
0:01:05.5]} 51. Kh3 {[%clk 0:00:48.4]} 51... Ra2 {[%clk 0:01:05.5]} 52. a5
{[%clk 0:00:44.7]} 52... Nf2+ {[%clk 0:01:02.9]} 53. Kg2 {[%clk 0:00:44.9]}
53... Ng4+ {[%clk 0:01:03.5]} 54. Kg1 {[%clk 0:00:44]} 54... Ne5 {[%clk
0:00:57.3]} 55. Nf6 {[%clk 0:00:43.2]} 55... Nc6 {[%clk 0:00:51.5]} 56. Ra8+
{[%clk 0:00:43.3]} 56... Ke7 {[%clk 0:00:51.5]} 57. Ng8+ {[%clk 0:00:43]} 57...
Kd6 {[%clk 0:00:50.8]} 58. a6 {[%clk 0:00:43.3]} 58... Ke5 {[%clk 0:00:50.7]}
59. h5 {[%clk 0:00:43.3]} 59... Ke4 {[%clk 0:00:47.8]} 60. h6 {[%clk 0:00:38.8]}
60... Ne5 {[%clk 0:00:42.5]} 61. h7 {[%clk 0:00:37.4]} 61... Nf3+ {[%clk
0:00:42.4]} 62. Kf1 {[%clk 0:00:35.5]} 62... Ke3 {[%clk 0:00:42.2]} 63. h8=Q
{[%clk 0:00:22]} 63... Rf2# {[%clk 0:00:40.9]} 0-1

[Event "Late-Titled-Tuesday-Blitz-September-26-2023"]
[Site "Chess.com"]
[Date "2023.09.26"]
[Round "8"]
[White "Zampronha1971"]
[Black "Cambek64"]
[Result "0-1"]
[WhiteElo "2285"]
[BlackElo "2466"]
[TimeControl "180+1"]
[EndTime "15:25:22 PDT"]
[Termination "Cambek64 won by resignation"]

1. e4 {[%clk 0:03:00.9]} 1... c5 {[%clk 0:03:00.2]} 2. Nf3 {[%clk 0:03:00.8]}
2... d6 {[%clk 0:03:00.8]} 3. d4 {[%clk 0:03:01.4]} 3... cxd4 {[%clk 0:03:01.1]}
4. Nxd4 {[%clk 0:03:02.3]} 4... Nf6 {[%clk 0:03:01.3]} 5. Nc3 {[%clk 0:03:02.7]}
5... a6 {[%clk 0:03:00.5]} 6. Bg5 {[%clk 0:03:03.2]} 6... e5 {[%clk 0:03:00.7]}
7. Nf5 {[%clk 0:03:01.6]} 7... Bxf5 {[%clk 0:03:01.3]} 8. exf5 {[%clk
0:03:02.4]} 8... Be7 {[%clk 0:03:00.7]} 9. Bc4 {[%clk 0:03:00.6]} 9... Nbd7
{[%clk 0:03:01.1]} 10. O-O {[%clk 0:02:57.7]} 10... O-O {[%clk 0:03:00.6]} 11.
Qf3 {[%clk 0:02:45.3]} 11... Rc8 {[%clk 0:02:57.7]} 12. Bb3 {[%clk 0:02:44.3]}
12... Nc5 {[%clk 0:02:55.7]} 13. Rad1 {[%clk 0:02:36.2]} 13... Nxb3 {[%clk
0:02:49.8]} 14. cxb3 {[%clk 0:02:32.2]} 14... Rc6 {[%clk 0:02:42.8]} 15. Bxf6
{[%clk 0:02:31.7]} 15... Bxf6 {[%clk 0:02:42]} 16. Nd5 {[%clk 0:02:31.6]} 16...
Kh8 {[%clk 0:02:30.1]} 17. g3 {[%clk 0:02:25.5]} 17... Rc2 {[%clk 0:02:25.7]}
18. Nxf6 {[%clk 0:02:11.9]} 18... Qxf6 {[%clk 0:02:26.6]} 19. Qxb7 {[%clk
0:02:11.8]} 19... Rxb2 {[%clk 0:02:18.3]} 20. Qxa6 {[%clk 0:02:11.6]} 20... Qxf5
{[%clk 0:02:18.4]} 21. Qxd6 {[%clk 0:02:09.5]} 21... Re8 {[%clk 0:02:09.2]} 22.
Qd7 {[%clk 0:01:49.7]} 22... Qxd7 {[%clk 0:02:01.7]} 23. Rxd7 {[%clk 0:01:50.6]}
23... f6 {[%clk 0:01:54.5]} 24. Rc1 {[%clk 0:01:40.8]} 24... Rxa2 {[%clk
0:01:47.8]} 25. Rcc7 {[%clk 0:01:41.3]} 25... Rg8 {[%clk 0:01:47.9]} 26. b4
{[%clk 0:01:40]} 26... Rb2 {[%clk 0:01:45.7]} 27. Rb7 {[%clk 0:01:40.2]} 27...
h5 {[%clk 0:01:45.8]} 28. h4 {[%clk 0:01:39]} 28... Kh7 {[%clk 0:01:46.2]} 29.
b5 {[%clk 0:01:38.8]} 29... Kg6 {[%clk 0:01:46.6]} 30. b6 {[%clk 0:01:38.8]}
30... e4 {[%clk 0:01:45.9]} 31. Re7 {[%clk 0:01:38.2]} 31... Kf5 {[%clk
0:01:35.9]} 32. Rxg7 {[%clk 0:01:35]} 32... Rxg7 {[%clk 0:01:34.5]} 33. Rxg7
{[%clk 0:01:35.9]} 33... Rxb6 {[%clk 0:01:34]} 34. Rh7 {[%clk 0:01:35.5]} 34...
Kg4 {[%clk 0:01:29]} 35. Rg7+ {[%clk 0:01:30]} 35... Kf3 {[%clk 0:01:27.1]} 36.
Rh7 {[%clk 0:01:26]} 36... Rb1+ {[%clk 0:01:23]} 37. Kh2 {[%clk 0:01:25.9]}
37... Kxf2 {[%clk 0:01:23.3]} 38. Rxh5 {[%clk 0:01:23.4]} 38... Rb6 {[%clk
0:01:08.8]} 39. Rf5+ {[%clk 0:01:23.3]} 39... Ke2 {[%clk 0:01:04.1]} 40. Kg2
{[%clk 0:01:21.4]} 40... e3 {[%clk 0:01:03.7]} 41. h5 {[%clk 0:01:17.8]} 41...
Kd3 {[%clk 0:00:45]} 42. h6 {[%clk 0:01:08.1]} 42... e2 {[%clk 0:00:32.3]} 43.
Kf2 {[%clk 0:01:05.4]} 43... Rb1 {[%clk 0:00:28.6]} 44. Rf3+ {[%clk 0:00:14.9]}
44... Kd2 {[%clk 0:00:27]} 45. Re3 {[%clk 0:00:15.8]} 45... e1=Q+ {[%clk
0:00:24.2]} 46. Rxe1 {[%clk 0:00:15.5]} 46... Rxe1 {[%clk 0:00:24.1]} 47. Kf3
{[%clk 0:00:16.4]} 47... Rh1 {[%clk 0:00:19.5]} 0-1

[Event "Late-Titled-Tuesday-Blitz-September-26-2023"]
[Site "Chess.com"]
[Date "2023.09.26"]
[Round "8"]
[White "Pedrada88"]
[Black "AradNazari"]
[Result "0-1"]
[WhiteElo "2579"]
[BlackElo "2794"]
[TimeControl "180+1"]
[EndTime "15:25:23 PDT"]
[Termination "AradNazari won by resignation"]

1. d4 {[%clk 0:03:00.9]} 1... Nf6 {[%clk 0:03:00]} 2. Nf3 {[%clk 0:03:01.2]}
2... g6 {[%clk 0:03:00.3]} 3. Bg5 {[%clk 0:03:01.1]} 3... Bg7 {[%clk 0:02:58.8]}
4. Nbd2 {[%clk 0:03:01.3]} 4... c5 {[%clk 0:02:57.9]} 5. e3 {[%clk 0:02:59.1]}
5... O-O {[%clk 0:02:51.9]} 6. c3 {[%clk 0:02:59.2]} 6... b6 {[%clk 0:02:48]} 7.
Be2 {[%clk 0:02:59.3]} 7... Bb7 {[%clk 0:02:47]} 8. O-O {[%clk 0:02:59.5]} 8...
d6 {[%clk 0:02:46.4]} 9. a4 {[%clk 0:02:57.7]} 9... Nbd7 {[%clk 0:02:40.8]} 10.
Re1 {[%clk 0:02:57.7]} 10... Qc7 {[%clk 0:02:39.1]} 11. a5 {[%clk 0:02:56.8]}
11... e5 {[%clk 0:02:38.5]} 12. dxe5 {[%clk 0:02:54.1]} 12... Nxe5 {[%clk
0:02:33.5]} 13. Nxe5 {[%clk 0:02:51.9]} 13... dxe5 {[%clk 0:02:34.4]} 14. Bxf6
{[%clk 0:02:41.7]} 14... Bxf6 {[%clk 0:02:33.8]} 15. a6 {[%clk 0:02:42.2]} 15...
Bc6 {[%clk 0:02:33]} 16. Bf3 {[%clk 0:02:42.6]} 16... Rad8 {[%clk 0:02:32]} 17.
Bxc6 {[%clk 0:02:39.6]} 17... Qxc6 {[%clk 0:02:32.9]} 18. Qc2 {[%clk 0:02:36.3]}
18... c4 {[%clk 0:02:12]} 19. Qe4 {[%clk 0:02:34]} 19... Qxe4 {[%clk 0:02:11.7]}
20. Nxe4 {[%clk 0:02:33.9]} 20... Be7 {[%clk 0:02:12.4]} 21. Red1 {[%clk
0:02:30.8]} 21... f5 {[%clk 0:02:10.1]} 22. Nd2 {[%clk 0:02:29.7]} 22... b5
{[%clk 0:02:09.2]} 23. Nf3 {[%clk 0:02:21.1]} 23... Bf6 {[%clk 0:02:03.4]} 24.
Kf1 {[%clk 0:02:21.3]} 24... Kf7 {[%clk 0:01:56.4]} 25. Ke2 {[%clk 0:02:21]}
25... Rxd1 {[%clk 0:01:52.9]} 26. Rxd1 {[%clk 0:02:18.6]} 26... Ke6 {[%clk
0:01:51.8]} 27. e4 {[%clk 0:02:15.2]} 27... Rb8 {[%clk 0:01:42]} 28. Nd2 {[%clk
0:01:59.6]} 28... Rb6 {[%clk 0:01:37.7]} 29. Ra1 {[%clk 0:01:59.2]} 29... Bd8
{[%clk 0:01:29.8]} 30. b3 {[%clk 0:01:54.4]} 30... cxb3 {[%clk 0:01:23.4]} 31.
Nxb3 {[%clk 0:01:55.3]} 31... Rc6 {[%clk 0:01:23.4]} 32. Kd2 {[%clk 0:01:22.2]}
32... fxe4 {[%clk 0:01:13.2]} 33. Re1 {[%clk 0:01:06.4]} 33... Kd5 {[%clk
0:01:07.9]} 34. Rd1 {[%clk 0:00:57.1]} 34... Bb6 {[%clk 0:00:47.8]} 35. Ke2+
{[%clk 0:00:51.7]} 35... Ke6 {[%clk 0:00:48.1]} 36. Rc1 {[%clk 0:00:45.1]} 36...
Rc4 {[%clk 0:00:44.7]} 37. Nd2 {[%clk 0:00:34.4]} 37... Ra4 {[%clk 0:00:42.5]}
38. Rb1 {[%clk 0:00:34.8]} 38... Rxa6 {[%clk 0:00:35.1]} 39. Rxb5 {[%clk
0:00:35.1]} 39... Ra2 {[%clk 0:00:35.6]} 40. Rb4 {[%clk 0:00:18.5]} 40... Kf5
{[%clk 0:00:32.5]} 41. g4+ {[%clk 0:00:14.5]} 41... Kxg4 {[%clk 0:00:29.9]} 42.
Rxe4+ {[%clk 0:00:15.1]} 42... Kf5 {[%clk 0:00:30.6]} 43. Rh4 {[%clk 0:00:12.2]}
43... h5 {[%clk 0:00:27.6]} 44. f3 {[%clk 0:00:12.6]} 44... Bd8 {[%clk
0:00:24.4]} 45. Re4 {[%clk 0:00:01.6]} 45... Bg5 {[%clk 0:00:24.8]} 46. f4
{[%clk 0:00:02.1]} 46... Bxf4 {[%clk 0:00:24.8]} 47. Rxf4+ {[%clk 0:00:02.1]}
47... exf4 {[%clk 0:00:24.6]} 0-1

[Event "Late-Titled-Tuesday-Blitz-September-26-2023"]
[Site "Chess.com"]
[Date "2023.09.26"]
[Round "8"]
[White "Arteler"]
[Black "Dhaydon19"]
[Result "0-1"]
[WhiteElo "2588"]
[BlackElo "2737"]
[TimeControl "180+1"]
[EndTime "15:25:24 PDT"]
[Termination "Dhaydon19 won by checkmate"]

1. e4 {[%clk 0:02:52.1]} 1... c6 {[%clk 0:03:00.1]} 2. d4 {[%clk 0:02:51.3]}
2... d5 {[%clk 0:03:00.8]} 3. exd5 {[%clk 0:02:52.2]} 3... cxd5 {[%clk
0:03:00.5]} 4. c4 {[%clk 0:02:53.1]} 4... Nf6 {[%clk 0:03:00.3]} 5. Nc3 {[%clk
0:02:53.7]} 5... e6 {[%clk 0:03:00.5]} 6. Nf3 {[%clk 0:02:53.3]} 6... dxc4
{[%clk 0:03:00.5]} 7. Bxc4 {[%clk 0:02:53.4]} 7... Be7 {[%clk 0:03:01.2]} 8. O-O
{[%clk 0:02:53.7]} 8... O-O {[%clk 0:03:01.9]} 9. Qe2 {[%clk 0:02:45.6]} 9... a6
{[%clk 0:03:01.3]} 10. Bd3 {[%clk 0:02:37.7]} 10... b5 {[%clk 0:03:00.6]} 11.
Rd1 {[%clk 0:02:35.9]} 11... Bb7 {[%clk 0:03:00.3]} 12. Ne5 {[%clk 0:02:35.3]}
12... Nc6 {[%clk 0:02:57.6]} 13. Be3 {[%clk 0:02:24.8]} 13... Nb4 {[%clk
0:02:56.1]} 14. Bb1 {[%clk 0:02:18.3]} 14... Rc8 {[%clk 0:02:55.5]} 15. a4
{[%clk 0:02:09.2]} 15... bxa4 {[%clk 0:02:53.7]} 16. Rxa4 {[%clk 0:02:06.6]}
16... Nbd5 {[%clk 0:02:52.8]} 17. Rc4 {[%clk 0:01:54.6]} 17... Rxc4 {[%clk
0:02:47]} 18. Qxc4 {[%clk 0:01:51]} 18... Qa8 {[%clk 0:02:45.1]} 19. Qf1 {[%clk
0:01:37.8]} 19... Rc8 {[%clk 0:02:39.2]} 20. Na4 {[%clk 0:01:30.8]} 20... Qa7
{[%clk 0:02:31.4]} 21. Bg5 {[%clk 0:01:13.4]} 21... h6 {[%clk 0:02:25.4]} 22.
Bh4 {[%clk 0:01:13.6]} 22... Nf4 {[%clk 0:02:12.7]} 23. f3 {[%clk 0:01:08.9]}
23... Bd5 {[%clk 0:02:02.5]} 24. Nc3 {[%clk 0:01:00.9]} 24... Bb3 {[%clk
0:01:54]} 25. Rd2 {[%clk 0:00:59]} 25... N4d5 {[%clk 0:01:52.3]} 26. Qd3 {[%clk
0:00:49.7]} 26... g5 {[%clk 0:01:50.4]} 27. Bf2 {[%clk 0:00:47]} 27... Bb4
{[%clk 0:01:42.9]} 28. Ng4 {[%clk 0:00:34.3]} 28... Bc4 {[%clk 0:01:27.4]} 29.
Nxf6+ {[%clk 0:00:28.1]} 29... Nxf6 {[%clk 0:01:24.5]} 30. Qe3 {[%clk
0:00:28.6]} 30... Nd5 {[%clk 0:01:17.9]} 31. Qe4 {[%clk 0:00:24.9]} 31... Nf6
{[%clk 0:01:07.8]} 32. Qe5 {[%clk 0:00:24.5]} 32... Qe7 {[%clk 0:01:03.3]} 33.
h4 {[%clk 0:00:24.3]} 33... Nd7 {[%clk 0:01:00.1]} 34. Qe4 {[%clk 0:00:24.5]}
34... f5 {[%clk 0:00:58.8]} 35. Qe1 {[%clk 0:00:24.1]} 35... Qf6 {[%clk
0:00:55.1]} 36. hxg5 {[%clk 0:00:23.9]} 36... hxg5 {[%clk 0:00:54.6]} 37. d5
{[%clk 0:00:21.1]} 37... exd5 {[%clk 0:00:49.4]} 38. Bd4 {[%clk 0:00:19.9]}
38... Qe7 {[%clk 0:00:47.3]} 39. Qxe7 {[%clk 0:00:12.9]} 39... Bxe7 {[%clk
0:00:47.1]} 40. Bxf5 {[%clk 0:00:13.7]} 40... Rd8 {[%clk 0:00:42.2]} 41. Be6+
{[%clk 0:00:14]} 41... Kh7 {[%clk 0:00:42.5]} 42. Bxd5 {[%clk 0:00:14.2]} 42...
Bxd5 {[%clk 0:00:35.4]} 43. Nxd5 {[%clk 0:00:15.1]} 43... Bf8 {[%clk 0:00:32.3]}
44. Bf6 {[%clk 0:00:07.8]} 44... Bc5+ {[%clk 0:00:26.5]} 45. Kh2 {[%clk
0:00:07.3]} 45... Rg8 {[%clk 0:00:26]} 46. Bc3 {[%clk 0:00:05.8]} 46... Bd6+
{[%clk 0:00:26.2]} 47. Kh3 {[%clk 0:00:03.8]} 47... Kg6 {[%clk 0:00:26.6]} 48.
Ne3 {[%clk 0:00:02.6]} 48... Be5 {[%clk 0:00:22.8]} 49. Rxd7 {[%clk 0:00:02.5]}
49... Rh8+ {[%clk 0:00:23]} 50. Kg4 {[%clk 0:00:01.5]} 50... Rh4# {[%clk
0:00:23.6]} 0-1